bitfinex-derivatives/quotes_SOLF0:USTF0_20241017
["timestamp","ask_amount","ask_price","bid_price","bid_amount"]
[1729141191640,13.8,153.36,153.28,4.1334]
[1729141191839,13.8,153.36,153.28,7.3956]
[1729141191840,3.2619,153.31,153.28,7.3956]
[1729141192144,3.2619,153.31,153.3,9.02]
[1729141197242,9.02,153.34,153.28,7.3958]
[1729141197539,3.2621,153.3,153.28,7.3958]
[1729141197740,3.2621,153.3,153.29,9.02]
[1729141200142,4.78,153.36,153.3,3.2619]
[1729141200347,4.78,153.36,153.29,9.02]
[1729141200348,4.78,153.36,153.31,9.02]
[1729141200849,4.78,153.36,153.28,7.3958]
[1729141201351,4.78,153.36,153.31,9.02]
[1729141201547,3.2616,153.32,153.31,9.02]
[1729141204556,6.5203,153.4,153.31,9.02]
[1729141204760,9.02,153.37,153.31,9.02]
[1729141205146,3.2615,153.33,153.31,9.02]
[1729141208560,13.8,153.36,153.28,4.1334]
[1729141208763,3.2618,153.31,153.29,3.2621]
[1729141208964,3.2618,153.31,153.3,9.02]
[1729141219660,3.2618,153.31,153.29,12.2821]
[1729141220060,3.262,153.3,153.28,4.1334]
[1729141220467,3.262,153.3,153.28,13.1534]
[1729141220762,3.2622,153.29,153.28,11.8304]
[1729141221163,3.2622,153.29,153.28,2.8104]
[1729141221465,3.2622,153.29,153.28,11.8304]
[1729141222468,3.2624,153.28,153.27,3.34399872]
[1729141222674,3.2624,153.28,153.26,9.02]
[1729141222862,3.2624,153.28,153.26,12.25327295]
[1729141223164,9.02,153.31,153.26,12.25327295]
[1729141223762,3.2627,153.27,153.26,3.23327295]
[1729141223966,3.2627,153.27,153.26,9.02]
[1729141224166,3.2627,153.27,153.26,12.23008471]
[1729141225868,3.2627,153.27,153.26,3.21008471]
[1729141226069,3.2627,153.27,153.26,9.02]
[1729141226263,3.2627,153.27,153.26,12.33158291]
[1729141228871,3.2625,153.28,153.26,12.33158291]
[1729141229070,127.54519928,153.35,153.27,12.2825]
[1729141229267,127.54519928,153.35,153.31,9.02]
[1729141229469,3.2616,153.32,153.31,9.02]
[1729141234674,4.78,153.34,153.29,9.02]
[1729141234875,3.2621,153.3,153.29,9.02]
[1729141240578,3.2623,153.29,153.28,9.02]
[1729141244571,3.2619,153.31,153.28,12.2823]
[1729141244879,13.8,153.34,153.29,9.02]
[1729141246481,3.262,153.3,153.29,9.02]
[1729141247783,13.8,153.34,153.29,9.02]
[1729141247784,4.78,153.34,153.29,9.02]
[1729141248088,4.76,153.37,153.32,9.02]
[1729141248385,4.76,153.37,153.33,3.26383457]
[1729141249079,4.76,153.39,153.35,9.02]
[1729141249279,4.76,153.39,153.36,9.02]
[1729141249482,3.2607,153.37,153.36,9.02]
[1729141249679,3.2607,153.37,153.36,12.22882815]
[1729141252978,6.5171,153.47,153.36,12.22882815]
[1729141253187,4.76,153.43,153.39,9.02]
[1729141253992,4.76,153.43,153.4,3.30180845]
[1729141254191,3.2597,153.41,153.4,3.30180845]
[1729141256294,3.2596,153.42,153.4,9.02]
[1729141256593,3.2596,153.42,153.41,9.02]
[1729141257687,3.2596,153.42,153.41,12.25093367]
[1729141258094,3.2596,153.42,153.41,3.23093367]
[1729141260900,9.02,153.42,153.37,4.76]
[1729141261098,14.39326699,153.51,153.37,4.76]
[1729141261099,11.02002895,153.51,153.42,288.0]
[1729141261399,9.02,153.54,153.48,9.02]
[1729141261600,3.258,153.49,153.48,12.33660159]
[1729141261902,3.258,153.49,153.48,9.02]
[1729141262109,3.2578,153.5,153.48,9.02]
[1729141263707,3.258,153.49,153.48,9.02]
[1729141264496,3.2586,153.47,153.44,1.371]
[1729141264698,3.2586,153.47,153.46,9.02]
[1729141265910,3.2582,153.48,153.46,9.02]
[1729141266204,3.2582,153.48,153.47,9.02]
[1729141268511,4.76,153.49,153.47,9.02]
[1729141269812,3.2582,153.48,153.47,9.02]
[1729141273514,4.76,153.49,153.47,12.2784]
[1729141273714,4.76,153.49,153.47,9.02]
[1729141274011,4.76,153.52,153.47,9.02]
[1729141274217,4.76,153.52,153.51,9.02]
[1729141274417,4.76,153.52,153.5,9.02]
[1729141274717,3.2576,153.51,153.5,9.02]
[1729141275619,3.2578,153.5,153.49,9.02]
[1729141277117,4.76,153.52,153.49,9.02]
[1729141277509,4.76,153.52,153.5,9.02]
[1729141277707,3.2577,153.51,153.5,9.02]
[1729141278508,7.9546,153.59,153.5,9.02]
[1729141278709,13.78,153.58,153.52,9.02]
[1729141279617,3.2571,153.53,153.52,9.02]
[1729141280320,3.2571,153.53,153.51,9.02]
[1729141280516,4.76,153.54,153.51,9.02]
[1729141281519,3.2573,153.52,153.51,9.02]
[1729141283417,4.76,153.54,153.48,10.4597]
[1729141283418,3.258,153.49,153.48,10.4597]
[1729141283816,3.258,153.49,153.48,9.02]
[1729141284118,9.02,153.52,153.44,9.39578117]
[1729141284324,9.02,153.49,153.44,3.26478117]
[1729141284617,3.2586,153.47,153.42,9.02]
[1729141284822,9.02,153.47,153.42,9.02]
[1729141285122,4.76,153.49,153.4,4.62284412]
[1729141285123,9.02,153.45,153.4,4.62284412]
[1729141285325,13.78,153.45,153.4,13.64284412]
[1729141286520,3.2597,153.41,153.4,13.64284412]
[1729141287522,3.2595,153.42,153.4,13.64284412]
[1729141287919,4.76,153.45,153.41,3.2596]
[1729141288125,4.76,153.45,153.43,9.02]
[1729141288423,4.76,153.48,153.44,9.02]
[1729141288622,2.4016,153.53,153.46,9.02]
[1729141288623,4.76,153.49,153.46,9.02]
[1729141288822,4.76,153.49,153.4,6.01934412]
[1729141288823,4.76,153.5,153.47,9.02]
[1729141289421,3.2581,153.49,153.47,9.02]
[1729141292627,4.76,153.5,153.47,9.02]
[1729141292930,3.2582,153.48,153.47,9.02]
[1729141293319,8.0178,153.5,153.47,12.2783]
[1729141293523,8.0178,153.5,153.49,9.02]
[1729141298231,4.76,153.5,153.49,9.02]
[1729141298924,9.02,153.55,153.49,9.02]
[1729141299325,4.76,153.54,153.49,9.02]
[1729141299630,3.2578,153.5,153.49,9.02]
[1729141301333,4.76,153.54,153.42,4.76]
[1729141301334,9.02,153.51,153.44,3.2589]
[1729141301630,9.02,153.5,153.45,9.02]
[1729141301932,3.2586,153.46,153.45,9.02]
[1729141302129,9.02,153.48,153.43,10.4521]
[1729141302533,3.259,153.44,153.43,10.4521]
[1729141302733,9.02,153.47,153.42,9.02]
[1729141303237,4.76,153.46,153.42,9.02]
[1729141303631,3.2593,153.43,153.42,9.02]
[1729141306636,13.78,153.46,153.41,9.02]
[1729141306836,9.02,153.44,153.39,1.4007]
[1729141307031,4.76,153.46,153.23,226.0]
[1729141307032,9.02,153.41,153.36,9.02]
[1729141307233,3.2606,153.37,153.36,9.02]
[1729141321850,3.2606,153.37,153.34,3.2611]
[1729141322146,3.2606,153.37,153.36,9.02]
[1729141326444,4.76,153.41,153.33,2.7346]
[1729141326642,9.02,153.4,153.33,2.7346]
[1729141326849,9.02,153.4,153.35,9.02]
[1729141327344,3.2607,153.36,153.35,9.02]
[1729141328239,3.2604,153.38,153.35,12.2809]
[1729141328444,3.2604,153.38,153.37,9.02]
[1729141333550,3.2602,153.39,153.37,9.02]
[1729141333755,4.76,153.42,153.38,9.02]
[1729141333956,4.76,153.43,153.41,9.02]
[1729141334157,3.2595,153.42,153.41,12.28092619]
[1729141336648,7.8437,153.48,153.41,12.28092619]
[1729141336649,3.2593,153.43,153.41,12.28092619]
[1729141336955,3.2593,153.43,153.42,9.02]
[1729141338255,3.2593,153.43,153.42,12.223216]
[1729141339356,4.76,153.48,153.42,12.223216]
[1729141339558,10.3421,153.52,153.47,9.02]
[1729141339761,4.76,153.49,153.47,9.02]
[1729141340151,3.2582,153.48,153.42,3.203216]
[1729141340358,3.2582,153.48,153.47,9.02]
[1729141340659,3.2582,153.48,153.47,12.3255247]
[1729141341556,3.258,153.5,153.47,12.3255247]
[1729141341752,3.258,153.5,153.49,9.02]
[1729141342561,3.258,153.5,153.49,12.22379619]
[1729141346656,3.258,153.5,153.49,3.20379619]
[1729141346859,3.2586,153.46,153.44,1.4417]
[1729141347058,3.2586,153.46,153.29,80.2466]
[1729141347059,13.78,153.47,153.37,4.76]
[1729141347264,13.78,153.47,153.42,9.02]
[1729141347458,9.02,153.45,153.42,3.24272897]
[1729141347657,4.76,153.47,153.39,9.02]
[1729141347658,9.02,153.44,153.39,9.02]
[1729141347960,4.76,153.43,153.39,9.02]
[1729141348162,3.2599,153.4,153.39,9.02]
[1729141353969,4.76,153.43,153.39,9.02]
[1729141354266,3.2596,153.42,153.4,9.02]
[1729141354866,3.2596,153.42,153.41,3.21810158]
[1729141356164,4.76,153.43,153.41,3.21810158]
[1729141356370,3.2595,153.42,153.41,3.21810158]
[1729141361174,3.2595,153.42,153.4,9.02]
[1729141365570,4.76,153.44,153.4,9.02]
[1729141365874,3.2597,153.41,153.4,9.02]
[1729141366170,13.78,153.44,153.39,9.02]
[1729141366375,3.26,153.4,153.39,9.02]
[1729141368179,3.2603,153.39,153.38,9.02]
[1729141385185,3.2596,153.42,153.38,9.02]
[1729141385387,3.2596,153.42,153.41,9.02]
[1729141385586,3.2596,153.42,153.41,12.24126496]
[1729141387091,3.2593,153.43,153.41,12.24126496]
[1729141387481,3.2593,153.43,153.41,3.22126496]
[1729141387686,3.2593,153.43,153.4,3.2598]
[1729141387687,3.2593,153.43,153.42,9.02]
[1729141387892,3.2593,153.43,153.42,12.22039213]
[1729141390984,1.3759,153.49,153.42,12.22039213]
[1729141391187,90.01,153.58,153.45,9.02]
[1729141391387,9.02,153.51,153.46,9.02]
[1729141391589,3.2584,153.48,153.46,9.02]
[1729141391782,4.76,153.52,153.47,9.02]
[1729141391986,4.76,153.52,153.49,9.02]
[1729141392398,3.2579,153.5,153.49,9.02]
[1729141392691,3.2579,153.5,153.49,12.30747744]
[1729141397293,3.2576,153.51,153.49,12.30747744]
[1729141397597,4.76,153.52,153.49,12.30747744]
[1729141398095,1.3877,153.54,153.49,12.30747744]
[1729141398297,4.76,153.53,153.49,12.30747744]
[1729141398597,3.2578,153.5,153.49,12.30747744]
[1729141411710,3.2578,153.5,153.49,3.28747744]
[1729141411906,3.2588,153.45,153.43,2.8044]
[1729141412117,4.76,153.49,153.44,9.02]
[1729141412410,4.76,153.49,153.46,9.02]
[1729141412810,3.2582,153.48,153.46,9.02]
[1729141413206,4.76,153.49,153.46,9.02]
[1729141413405,4.76,153.49,153.48,9.02]
[1729141414409,8.0181,153.49,153.48,9.02]
[1729141415912,3.2585,153.47,153.46,9.02]
[1729141419716,3.2586,153.46,153.45,9.02]
[1729141425015,3.2583,153.48,153.46,3.2586]
[1729141425320,4.76,153.5,153.48,9.02]
[1729141425621,3.258,153.49,153.48,9.02]
[1729141426618,4.76,153.52,153.48,9.02]
[1729141426819,4.76,153.52,153.43,6.03388279]
[1729141426820,3.2578,153.5,153.49,9.02]
[1729141431715,3.2578,153.5,153.47,3.2584]
[1729141431910,3.2578,153.5,153.49,9.02]
[1729141438023,3.2586,153.46,153.44,4.76]
[1729141438231,9.02,153.51,153.46,9.02]
[1729141438826,3.2585,153.47,153.46,9.02]
[1729141439328,3.2582,153.48,153.46,9.02]
[1729141439529,3.2582,153.48,153.43,6.03388279]
[1729141439530,3.2582,153.48,153.47,9.02]
[1729141440731,3.2582,153.48,153.45,3.2587]
[1729141440930,3.2582,153.48,153.47,9.02]
[1729141448334,4.76,153.53,153.47,9.02]
[1729141448633,4.76,153.53,153.48,9.02]
[1729141448833,3.258,153.49,153.48,9.02]
[1729141450034,4.76,153.52,153.48,9.02]
[1729141450232,3.2578,153.5,153.48,9.02]
[1729141457944,4.76,153.54,153.48,9.02]
[1729141458245,4.76,153.54,153.51,9.02]
[1729141458447,3.2571,153.53,153.52,3.25555549]
[1729141459445,3.2571,153.53,153.52,9.02]
[1729141459650,70.44,153.58,153.52,12.3311867]
[1729141459651,3.257,153.54,153.52,12.3311867]
[1729141459849,3.257,153.54,153.53,9.02]
[1729141460548,3.257,153.54,153.53,12.29403362]
[1729141460746,3.2568,153.55,153.53,12.29403362]
[1729141462245,3.2569,153.54,153.53,12.29403362]
[1729141470053,4.74,153.58,153.53,12.29403362]
[1729141470254,3.2569,153.55,153.53,12.29403362]
[1729141471048,4.74,153.58,153.53,12.29403362]
[1729141471753,3.2569,153.55,153.54,9.02]
[1729141472454,3.2566,153.56,153.54,9.02]
[1729141473253,3.2567,153.55,153.54,9.02]
[1729141473750,4.74,153.58,153.54,9.02]
[1729141473949,4.74,153.58,153.56,9.02]
[1729141473950,3.2564,153.57,153.56,9.02]
[1729141474747,3.2564,153.57,153.56,12.21128186]
[1729141480057,3.2564,153.57,153.56,3.19128186]
[1729141484159,3.2564,153.57,153.56,12.21128186]
[1729141484370,3.2564,153.57,153.56,3.19128186]
[1729141484564,4.74,153.59,153.55,9.02]
[1729141484766,3.2565,153.56,153.55,9.02]
[1729141485065,3.2565,153.56,153.55,12.23648784]
[1729141493171,3.2565,153.56,153.55,3.21648784]
[1729141493469,3.2565,153.56,153.54,9.02]
[1729141493672,3.2565,153.56,153.55,9.02]
[1729141499175,3.2564,153.57,153.55,9.02]
[1729141500670,4.74,153.59,153.53,3.32411087]
[1729141500869,4.74,153.59,153.53,9.02]
[1729141500870,3.2568,153.55,153.53,9.02]
[1729141501067,4.74,153.59,153.54,9.02]
[1729141501478,3.2564,153.57,153.54,12.2768]
[1729141506883,3.2563,153.57,153.56,9.02]
[1729141517093,3.2563,153.57,153.54,5.9658]
[1729141517293,3.2563,153.57,153.55,9.02]
[1729141527396,13.76,153.61,153.55,9.02]
[1729141527603,3.2565,153.56,153.55,9.02]
[1729141528904,4.74,153.61,153.55,12.2765]
[1729141529106,4.74,153.61,153.57,9.02]
[1729141529609,3.256,153.59,153.57,9.02]
[1729141531007,4.74,153.61,153.57,9.02]
[1729141531207,4.74,153.62,153.57,9.02]
[1729141532107,3.2561,153.58,153.57,9.02]
[1729141532804,3.2559,153.59,153.57,9.02]
[1729141533511,1.0735,153.65,153.57,12.2761]
[1729141533697,9.02,153.64,153.59,9.02]
[1729141533897,4.74,153.64,153.59,9.02]
[1729141534409,3.2556,153.61,153.58,3.2559]
[1729141534606,13.76,153.64,153.59,9.02]
[1729141535202,3.2556,153.6,153.59,9.02]
[1729141535903,3.2561,153.58,153.56,9.02]
[1729141536504,9.02,153.63,153.56,9.02]
[1729141537516,3.2563,153.58,153.56,9.02]
[1729141539516,3.2563,153.58,153.57,9.02]
[1729141540013,3.2561,153.58,153.57,9.02]
[1729141540218,13.76,153.64,153.57,9.02]
[1729141540418,13.76,153.64,153.55,4.74]
[1729141540619,13.76,153.64,153.58,9.02]
[1729141541015,3.2559,153.59,153.58,9.02]
[1729141541815,9.02,153.62,153.54,2.709]
[1729141542016,3.2567,153.55,153.54,1.3582]
[1729141545422,9.02,153.58,153.53,3.24972141]
[1729141545617,3.2569,153.54,153.53,9.02]
[1729141545817,3.2569,153.54,153.53,12.32456495]
[1729141547422,4.74,153.59,153.53,12.32456495]
[1729141547622,4.74,153.59,153.55,9.02]
[1729141547623,3.2566,153.56,153.55,9.02]
[1729141548326,3.2566,153.56,153.55,12.34498566]
[1729141550220,3.2566,153.56,153.55,3.32498566]
[1729141550419,9.02,153.58,153.53,9.02]
[1729141550620,9.02,153.58,153.53,12.28808019]
[1729141551121,3.2569,153.54,153.53,12.28808019]
[1729141554325,3.2568,153.55,153.53,12.28808019]
[1729141554523,3.2568,153.55,153.54,9.02]
[1729141554718,4.74,153.59,153.54,9.02]
[1729141554925,3.2567,153.55,153.54,9.02]
[1729141555319,3.2567,153.55,153.54,12.23681783]
[1729141559328,4.74,153.58,153.55,3.2567]
[1729141559329,3.2563,153.57,153.55,3.2567]
[1729141559528,4.74,153.58,153.54,12.23681783]
[1729141559734,9.02,153.61,153.56,9.02]
[1729141560026,3.2565,153.57,153.56,9.02]
[1729141560228,3.2565,153.57,153.56,12.30023631]
[1729141560628,3.2568,153.55,153.52,3.2573]
[1729141560931,3.2568,153.55,153.53,9.02]
[1729141563027,4.74,153.6,153.53,12.277]
[1729141563235,4.74,153.59,153.56,9.02]
[1729141563531,3.2563,153.57,153.56,9.02]
[1729141563729,3.2563,153.57,153.56,12.26667474]
[1729141565127,3.2555,153.61,153.56,15.52317474]
[1729141565328,9.02,153.64,153.58,9.02]
[1729141565533,4.74,153.63,153.58,9.02]
[1729141565833,4.74,153.63,153.59,3.28133617]
[1729141566428,3.2557,153.6,153.59,3.28133617]
[1729141566831,9.02,153.6,153.53,7.5837]
[1729141567034,9.02,153.61,153.56,9.02]
[1729141567233,9.02,153.61,153.57,3.31423749]
[1729141567830,9.02,153.58,153.53,1.4396]
[1729141568033,13.76,153.58,153.53,13.79142829]
[1729141568234,13.76,153.58,153.53,10.4596]
[1729141568434,3.2569,153.54,153.53,10.4596]
[1729141568841,3.2569,153.54,153.53,13.74940582]
[1729141570038,3.2569,153.54,153.53,4.72940582]
[1729141570245,3.2569,153.54,153.53,3.28980582]
[1729141570447,3.2569,153.54,153.52,9.02]
[1729141570948,3.2569,153.54,153.52,12.26851664]
[1729141576049,3.2571,153.53,153.52,12.26851664]
[1729141576243,3.2571,153.53,153.52,3.24851664]
[1729141576444,9.02,153.53,153.46,9.02]
[1729141576648,9.02,153.51,153.46,9.02]
[1729141576950,4.74,153.5,153.46,12.2199622]
[1729141577850,3.2582,153.49,153.46,12.2199622]
[1729141578446,3.2584,153.48,153.46,12.2199622]
[1729141584258,4.74,153.5,153.47,12.2783]
[1729141584462,4.74,153.5,153.49,9.02]
[1729141585563,3.2578,153.5,153.49,9.02]
[1729141585760,13.76,153.51,153.44,4.62290574]
[1729141586057,9.02,153.5,153.45,9.02]
[1729141587166,13.76,153.51,153.46,9.02]
[1729141587459,3.2584,153.48,153.46,9.02]
[1729141590569,13.76,153.51,153.46,9.02]
[1729141590767,3.2582,153.48,153.46,9.02]
[1729141601978,22.74715188,153.63,153.47,9.02]
[1729141602180,3.2575,153.52,153.5,9.02]
[1729141602875,79.4,153.57,153.5,3.2576]
[1729141603179,79.4,153.57,153.51,9.02]
[1729141603180,4.74,153.56,153.51,9.02]
[1729141604773,3.2573,153.53,153.51,9.02]
[1729141607083,3.2569,153.54,153.52,9.02]
[1729141607284,3.2569,153.54,153.52,12.19964805]
[1729141607588,3.2565,153.56,153.53,3.257]
[1729141607975,3.2565,153.56,153.54,9.02]
[1729141611386,3.2567,153.55,153.54,9.02]
[1729141612986,13.74,153.59,153.53,9.02]
[1729141613190,13.74,153.59,153.52,4.63774805]
[1729141613191,9.02,153.57,153.52,3.17964805]
[1729141613384,9.02,153.57,153.51,10.3517]
[1729141613781,3.2572,153.53,153.51,10.3517]
[1729141614679,3.2573,153.52,153.51,10.3517]
[1729141623798,3.2573,153.53,153.51,10.3517]
[1729141623996,3.2573,153.53,153.52,9.02]
[1729141624299,3.2573,153.53,153.52,12.21258522]
[1729141633903,3.257,153.54,153.52,12.21258522]
[1729141634100,3.257,153.54,153.53,9.02]
[1729141634804,3.257,153.54,153.53,12.32891028]
[1729141640011,3.2566,153.56,153.53,15.58591028]
[1729141640712,4.72,153.57,153.53,15.58591028]
[1729141640713,3.2567,153.55,153.53,15.58591028]
[1729141642814,3.2569,153.54,153.53,3.30891028]
[1729141643013,13.74,153.57,153.51,1.3317]
[1729141643513,13.74,153.57,153.51,10.3517]
[1729141643815,4.72,153.57,153.53,9.02]
[1729141644012,2.5132,153.62,153.54,9.02]
[1729141644013,4.72,153.59,153.54,9.02]
[1729141644207,4.72,153.59,153.51,1.3317]
[1729141644408,3.2567,153.56,153.54,9.02]
[1729141644708,3.2567,153.56,153.54,12.27014491]
[1729141647714,3.2567,153.55,153.54,3.25014491]
[1729141647916,9.02,153.55,153.51,1.3317]
[1729141648212,3.2571,153.53,153.52,3.27969467]
[1729141648418,9.02,153.54,153.49,9.02]
[1729141649017,3.2575,153.52,153.49,9.02]
[1729141649614,3.2576,153.51,153.49,9.02]
[1729141650125,9.02,153.52,153.46,4.72]
[1729141650332,13.74,153.51,153.46,9.02]
[1729141650823,3.2583,153.48,153.46,9.02]
[1729141654529,4.72,153.51,153.47,9.02]
[1729141654928,4.72,153.52,153.48,9.02]
[1729141655227,3.2577,153.51,153.48,12.2781]
[1729141655425,2.4431,153.57,153.49,9.02]
[1729141655624,3.2574,153.52,153.49,12.2779]
[1729141660127,3.2578,153.5,153.47,3.2583]
[1729141660428,3.2578,153.5,153.48,9.02]
[1729141663433,3.2578,153.5,153.47,3.2583]
[1729141663633,3.2578,153.5,153.48,9.02]
[1729141668733,3.2578,153.5,153.47,3.2583]
[1729141668933,3.2578,153.5,153.48,9.02]
[1729141672039,3.2578,153.5,153.47,12.2783]
[1729141672539,3.258,153.49,153.47,3.2583]
[1729141672930,3.258,153.49,153.47,3.2584]
[1729141675435,3.258,153.49,153.47,12.2784]
[1729141675827,13.74,153.53,153.46,4.72]
[1729141676033,13.74,153.53,153.47,9.02]
[1729141676843,3.2581,153.49,153.47,9.02]
[1729141680144,13.74,153.53,153.45,2.8361]
[1729141680444,3.2583,153.48,153.46,12.2786]
[1729141681040,9.02,153.51,153.45,2.8361]
[1729141681340,9.02,153.5,153.44,12.25490574]
[1729141681639,4.72,153.49,153.44,12.25490574]
[1729141681841,3.2586,153.47,153.45,9.02]
[1729141682042,9.02,153.53,153.46,9.02]
[1729141682238,4.72,153.52,153.47,9.02]
[1729141683042,3.2581,153.49,153.47,12.2783]
[1729141685743,3.2575,153.52,153.49,3.2579]
[1729141685945,4.72,153.53,153.49,3.2579]
[1729141686348,3.2577,153.51,153.48,3.2581]
[1729141693552,3.2577,153.51,153.49,9.02]
[1729141694751,3.2574,153.52,153.49,9.02]
[1729141694950,4.72,153.53,153.49,9.02]
[1729141696547,3.2577,153.51,153.49,9.02]
[1729141699853,4.72,153.53,153.49,9.02]
[1729141700653,3.2577,153.51,153.49,9.02]
[1729141709968,13.74,153.53,153.47,9.02]
[1729141710169,3.2579,153.5,153.47,12.2783]
[1729141710868,3.258,153.49,153.47,12.2783]
[1729141723878,3.2579,153.5,153.47,12.2783]
[1729141730885,9.02,153.51,153.45,4.56339233]
[1729141731085,3.2586,153.46,153.45,4.56339233]
[1729141731588,4.72,153.52,153.45,4.56339233]
[1729141731780,9.02,153.5,153.45,13.58339233]
[1729141733085,9.02,153.5,153.45,4.56339233]
[1729141733389,4.72,153.51,153.46,9.02]
[1729141733987,3.2581,153.49,153.46,12.2784]
[1729141740292,3.2581,153.49,153.46,3.2584]
[1729141740482,13.74,153.51,153.45,13.58339233]
[1729141740682,13.74,153.51,153.45,16.84219233]
[1729141741383,3.2584,153.48,153.45,16.84219233]
[1729141745492,9.02,153.5,153.45,4.56339233]
[1729141745696,9.02,153.48,153.45,4.56339233]
[1729141746197,3.2586,153.46,153.45,4.56339233]
[1729141746495,9.02,153.49,153.45,4.56339233]
[1729141747293,3.2582,153.48,153.45,7.82219233]
[1729141749702,3.2584,153.47,153.45,7.82219233]
[1729141754005,3.2582,153.48,153.45,4.56339233]
[1729141754205,9.02,153.49,153.45,4.56339233]
[1729141755306,3.2586,153.47,153.45,4.56339233]
[1729141758003,3.2582,153.48,153.45,7.82209233]
[1729141758203,9.02,153.5,153.45,7.82209233]
[1729141759004,9.02,153.5,153.45,4.56339233]
[1729141759206,3.2586,153.47,153.45,4.56339233]
[1729141760009,9.02,153.5,153.45,3.18829233]
[1729141760212,3.2586,153.46,153.43,12.2792]
[1729141760405,3.2586,153.46,153.43,15.55310795]
[1729141760608,9.02,153.48,153.43,3.27390795]
[1729141760905,13.74,153.47,153.42,3.2594]
[1729141761110,13.74,153.47,153.42,6.55286535]
[1729141762512,3.259,153.45,153.42,6.55286535]
[1729141762704,3.259,153.45,153.42,15.57286535]
[1729141770111,7.9785,153.47,153.44,3.259]
[1729141770915,7.9785,153.47,153.44,6.51030293]
[1729141780018,3.2584,153.48,153.45,12.2788]
[1729141781024,3.2584,153.48,153.45,9.02]
[1729141784228,3.2584,153.48,153.45,12.2788]
[1729141784632,3.2584,153.48,153.45,3.2588]
[1729141787915,9.02,153.49,153.44,3.25130293]
[1729141788226,9.02,153.49,153.43,9.02]
[1729141788227,4.72,153.5,153.45,9.02]
[1729141788428,9.02,153.51,153.45,9.02]
[1729141788429,13.74,153.51,153.45,12.26946013]
[1729141789121,3.2581,153.49,153.46,3.2585]
[1729141790228,72.8431,153.57,153.46,9.02]
[1729141790423,3.2576,153.51,153.48,3.2581]
[1729141792424,3.2578,153.5,153.48,3.2581]
[1729141793433,3.2578,153.5,153.47,12.2783]
[1729141796236,72.8431,153.57,153.49,9.02]
[1729141796237,4.7,153.55,153.49,9.02]
[1729141796424,13.72,153.55,153.49,9.02]
[1729141797028,3.2574,153.52,153.49,12.2778]
[1729141797324,13.72,153.55,153.51,9.02]
[1729141797527,13.72,153.55,153.5,9.02]
[1729141797732,3.2572,153.53,153.5,12.2776]
[1729141800741,3.2572,153.53,153.51,9.02]
[1729141804536,3.2572,153.53,153.51,10.3597]
[1729141809439,9.02,153.54,153.48,3.2581]
[1729141809648,9.02,153.53,153.47,10.47]
[1729141809940,3.2586,153.47,153.45,3.24946013]